[Event "EYCC Girls U16 2018"]
[Site "Riga"]
[Date "2018.08.20"]
[Round "1"]
[White "Peycheva, Gergana"]
[Black "Kvendseth, Thyra"]
[Result "1-0"]
[ECO "E87"]
[WhiteElo "2261"]
[BlackElo "1905"]
[Annotator "NA"]
[PlyCount "79"]
[EventDate "2018.08.20"]
[EventType "swiss"]
[EventCountry "LAT"]
[SourceTitle "playchess.com"]
[Source "ChessBase"]
[SourceQuality "1"]
[TimeControl "40/5400+30:1800+30"]

1. d4 {[%emt 0:00:00]} Nf6 {[%emt 0:00:00]} 2. c4 {[%emt 0:00:00]} g6 {[%emt 0:00:12]} 3. f3 {[%emt 0:01:25]} Bg7 {[%emt 0:00:33]} 4. e4 {[%emt 0:01:14]} d6 {[%emt 0:00:45]} 5. Nc3 {[%emt 0:01:24]} O-O {[%emt 0:03:55]} 6. Be3 {[%emt 0:00:38]} e5 {[%emt 0:02:58]} 7. d5 {[%emt 0:02:02]} Nbd7 {[%emt 0:08:49]} 8. Nge2 {[%emt 0:06:17]} a6 {[%emt 0:08:47]} 9. Qd2 $14 {[%emt 0:04:28] LiveBook: 16 Games} Qe7 {[%emt 0:07:28]} 10. h4 {[%emt 0:05:20]} h5 {[%emt 0:08:54]} 11. Ng3 {[%emt 0:05:17]} Rb8 {[%emt 0:09:12]} 12. Bd3 {[%emt 0:08:19]} Nc5 {[%emt 0:05:15]} 13. Bc2 {[%emt 0:04:45]} a5 {[%emt 0:06:21]} 14. O-O-O {[%emt 0:04:47]} b6 {[%emt 0:05:23]} 15. Nge2 {[%emt 0:07:04]} Bd7 {[%emt 0:03:30]} 16. Nb5 {[%emt 0:01:44]} Rfc8 {[%emt 0:02:10]} 17. Nec3 {[%emt 0:02:18]} Bf8 {[%emt 0:03:36]} 18. Bg5 {[%emt 0:03:56]} Bxb5 {[%emt 0:03:24]} 19. Nxb5 {[%emt 0:06:38]} Ncd7 {[%emt 0:01:43]} 20. Na7 {[%emt 0:03:28]} Rd8 {[%emt 0:05:18]} 21. Nc6 {[%emt 0:00:13]} Qe8 {[%emt 0:00:03]} 22. Nxd8 {[%emt 0:00:20]} Qxd8 {[%emt 0:00:31]} 23. g4 {[%emt 0:01:08]} Be7 {[%emt 0:02:05]} 24. Rdg1 {[%emt 0:00:54]} Kh7 {[%emt 0:04:10]} 25. Be3 {[%emt 0:05:50]} Qc8 {[%emt 0:02:21]} 26. Rf1 {[%emt 0:04:00]} Nc5 {[%emt 0:02:16]} 27. g5 {[%emt 0:02:54]} Nfd7 {[%emt 0:01:02]} 28. f4 {[%emt 0:00:11]} Qe8 {[%emt 0:00:49]} 29. Rf2 {[%emt 0:05:14]} Kg8 {[%emt 0:00:45]} 30. Rhf1 {[%emt 0:00:21]} Rc8 {[%emt 0:01:20]} 31. Qc3 {[%emt 0:00:55]} Bf8 {[%emt 0:00:33]} 32. fxe5 {[%emt 0:03:25]} Nxe5 {[%emt 0:00:08]} 33. Bd4 {[%emt 0:00:13]} Bg7 {[%emt 0:00:37]} 34. Bxe5 {[%emt 0:01:23]} Bxe5 {[%emt 0:00:19]} 35. Qf3 {[%emt 0:00:10]} a4 {[%emt 0:00:46]} 36. Qxf7+ {[%emt 0:01:58]} Qxf7 {[%emt 0:00:01]} 37. Rxf7 {[%emt 0:00:02]} Bg3 {[%emt 0:00:17]} 38. R7f6 {[%emt 0:00:41]} Be5 {[%emt 0:02:06]} 39. Rxg6+ {[%emt 0:00:16]} Kh7 {[%emt 0:00:08]} 40. Rh6+ {[%emt 0:00:00]} 1-0

[Event "EYCC Girls U16 2018"]
[Site "Riga"]
[Date "2018.08.20"]
[Round "1"]
[White "Beydullayeva, Govhar"]
[Black "Katkov, Michelle"]
[Result "1-0"]
[ECO "E15"]
[WhiteElo "2184"]
[BlackElo "1865"]
[Annotator "NA"]
[PlyCount "89"]
[EventDate "2018.08.20"]
[EventType "swiss"]
[EventCountry "LAT"]
[SourceTitle "playchess.com"]
[Source "ChessBase"]
[SourceQuality "1"]
[TimeControl "40/5400+30:1800+30"]

1. d4 {[%emt 0:00:00]} Nf6 {[%emt 0:00:00]} 2. c4 {[%emt 0:00:00]} e6 {[%emt 0:00:00]} 3. Nf3 {[%emt 0:00:00]} b6 {[%emt 0:00:11]} 4. g3 {[%emt 0:00:01]} Bb4+ {[%emt 0:01:46]} 5. Bd2 {[%emt 0:00:10] LiveBook: 1213 Games} a5 {[%emt 0:00:12]} 6. Bg2 {[%emt 0:00:34]} O-O {[%emt 0:00:29]} 7. O-O {[%emt 0:00:55]} Ba6 {[%emt 0:00:24]} 8. b3 $11 {[%emt 0:07:22]} d5 {[%emt 0:09:01]} 9. cxd5 {[%emt 0:12:27]} Nxd5 {[%emt 0:06:30]} 10. Re1 {[%emt 0:04:12]} c5 {[%emt 0:14:52]} 11. e4 {[%emt 0:26:31]} Bxd2 {[%emt 0:03:38]} 12. Qxd2 {[%emt 0:00:14]} Nb4 {[%emt 0:04:45]} 13. a3 {[%emt 0:02:56]} N4c6 {[%emt 0:03:23]} 14. d5 {[%emt 0:01:18]} exd5 {[%emt 0:01:30]} 15. exd5 {[%emt 0:00:28]} Nd4 {[%emt 0:08:53]} 16. Nxd4 {[%emt 0:00:43]} cxd4 {[%emt 0:00:57]} 17. Qxd4 {[%emt 0:00:09]} Nd7 {[%emt 0:04:14]} 18. Nc3 {[%emt 0:05:01]} Nc5 {[%emt 0:02:34]} 19. Rab1 {[%emt 0:01:09]} Bd3 {[%emt 0:06:32]} 20. Rb2 {[%emt 0:00:55]} Re8 {[%emt 0:07:15]} 21. Rd1 {[%emt 0:02:22]} Bf5 {[%emt 0:07:58]} 22. d6 {[%emt 0:07:05]} Rc8 {[%emt 0:01:26]} 23. b4 {[%emt 0:04:00]} Nd3 {[%emt 0:05:03]} 24. Rxd3 {[%emt 0:18:34]} Re1+ {[%emt 0:00:21]} 25. Bf1 {[%emt 0:00:02]} Bxd3 {[%emt 0:02:14]} 26. Qxd3 {[%emt 0:00:03]} Qd7 {[%emt 0:01:46]} 27. Rd2 {[%emt 0:03:48]} axb4 {[%emt 0:01:24]} 28. axb4 {[%emt 0:00:03]} Ra8 {[%emt 0:02:46]} 29. Rd1 {[%emt 0:00:29]} Rxd1 {[%emt 0:02:12]} 30. Qxd1 {[%emt 0:00:24]} Rd8 {[%emt 0:01:42]} 31. Nb5 {[%emt 0:00:14]} g6 {[%emt 0:00:23]} 32. h3 {[%emt 0:02:26]} Qc6 {[%emt 0:00:53]} 33. Qd3 {[%emt 0:00:24]} Qc1 {[%emt 0:00:30]} 34. Qe3 {[%emt 0:01:15]} Qc6 {[%emt 0:00:40]} 35. Kh2 {[%emt 0:00:35]} Re8 {[%emt 0:00:27]} 36. Qd3 {[%emt 0:00:15]} Rd8 {[%emt 0:00:27]} 37. h4 {[%emt 0:00:09]} Qc1 {[%emt 0:00:27]} 38. Kg2 {[%emt 0:00:52]} Qc6+ {[%emt 0:00:04]} 39. Kg1 {[%emt 0:00:09]} Qc1 {[%emt 0:00:45]} 40. Qc4 {[%emt 0:00:00]} Qe1 {[%emt 0:00:00]} 41. Qc7 {[%emt 0:01:33]} Qe8 {[%emt 0:05:56]} 42. Nd4 {[%emt 0:02:06]} Rd7 {[%emt 0:03:30]} 43. Qxb6 {[%emt 0:00:21]} Qe5 {[%emt 0:01:37]} 44. Nb5 {[%emt 0:00:16]} Qe1 {[%emt 0:01:33]} 45. Qe3 {[%emt 0:00:12]} 1-0

[Event "EYCC Girls U16 2018"]
[Site "Riga"]
[Date "2018.08.20"]
[Round "1"]
[White "Schneider, Jana"]
[Black "Mikic, Ivana"]
[Result "1-0"]
[ECO "C54"]
[WhiteElo "2179"]
[BlackElo "1843"]
[Annotator "NA"]
[PlyCount "91"]
[EventDate "2018.08.20"]
[EventType "swiss"]
[EventCountry "LAT"]
[SourceTitle "playchess.com"]
[Source "ChessBase"]
[SourceQuality "1"]
[TimeControl "40/5400+30:1800+30"]

1. e4 e5 2. Nf3 Nc6 3. Bc4 Bc5 4. c3 Nf6 5. d3 O-O (5... d5 6. exd5 Nxd5 7. Qb3) 6. Bg5 {LiveBook: 100 Games} h6 7. Bh4 Be7 8. Nbd2 d6 9. Bb3 Nd7 10. Bxe7 Qxe7 11. Nc4 Nc5 $11 12. Bc2 Be6 13. Ne3 Bd7 14. b4 Ne6 15. b5 Nb8 16. Rb1 a6 17. a4 axb5 18. axb5 Ng5 19. Nd2 Be6 20. h4 Nh7 21. d4 exd4 22. cxd4 d5 23. exd5 Bxd5 24. O-O Rd8 25. Nxd5 Rxd5 26. Nf3 Nd7 27. Re1 Qd8 28. Be4 Rd6 29. Bxb7 Rb8 30. Bc6 Nhf6 31. Qc2 Rb6 32. Ne5 Nxe5 33. dxe5 Rd2 34. Qf5 Nd5 35. e6 fxe6 36. Qxe6+ Kh8 37. Qe8+ Qxe8 38. Rxe8+ Kh7 39. Rd8 Nc3 40. Rxd2 Nxb1 41. Be4+ Kg8 42. Bxb1 Rxb5 43. Bg6 Kf8 44. Rd7 Rc5 45. Rf7+ Kg8 46. Re7 1-0

[Event "EYCC Girls U16 2018"]
[Site "Riga"]
[Date "2018.08.20"]
[Round "1"]
[White "Schulze, Lara"]
[Black "Minko, Olga"]
[Result "1-0"]
[ECO "C55"]
[WhiteElo "2167"]
[BlackElo "1823"]
[Annotator "NA"]
[PlyCount "61"]
[EventDate "2018.08.20"]
[EventType "swiss"]
[EventCountry "LAT"]
[SourceTitle "playchess.com"]
[Source "ChessBase"]
[SourceQuality "1"]
[TimeControl "40/5400+30:1800+30"]

1. e4 e5 {[%emt 0:00:00]} 2. Nf3 {[%emt 0:00:00]} Nc6 {[%emt 0:00:07]} 3. Bc4 {[%emt 0:00:00]} Nf6 {[%emt 0:00:25]} 4. d3 {[%emt 0:00:00]} h6 {[%emt 0:00:41]} 5. O-O {[%emt 0:00:01] LiveBook: 690 Games} g6 {[%emt 0:01:38]} 6. d4 {[%emt 0:00:34]} Nxe4 {[%emt 0:21:46]} 7. dxe5 {[%emt 0:07:09]} Nc5 {[%emt 0:04:16]} 8. Nc3 {[%emt 0:01:49]} Bg7 $16 {[%emt 0:04:24]} 9. Nd5 {[%emt 0:18:58]} d6 {[%emt 0:10:12]} 10. exd6 {[%emt 0:01:42]} cxd6 {[%emt 0:07:37]} 11. Re1+ {[%emt 0:01:47]} Be6 {[%emt 0:04:36]} 12. Nf4 {[%emt 0:07:20]} Qd7 {[%emt 0:01:40]} 13. Nxe6 {[%emt 0:09:44]} Nxe6 {[%emt 0:01:08]} 14. Qd3 {[%emt 0:10:04]} Ne7 {[%emt 0:11:13]} 15. Nh4 {[%emt 0:06:20]} d5 {[%emt 0:07:17]} 16. Bb5 {[%emt 0:00:56]} Nc6 {[%emt 0:01:39]} 17. Nxg6 {[%emt 0:01:12]} Rg8 {[%emt 0:01:39]} 18. Nh4 {[%emt 0:04:49]} Bf6 {[%emt 0:04:52]} 19. Nf5 {[%emt 0:01:03]} h5 {[%emt 0:06:18]} 20. Bf4 {[%emt 0:03:14]} O-O-O {[%emt 0:01:29]} 21. Be3 {[%emt 0:10:16]} d4 {[%emt 0:01:27]} 22. Bd2 {[%emt 0:00:21]} Rg6 {[%emt 0:03:00]} 23. Qc4 {[%emt 0:01:54]} Nc7 {[%emt 0:01:37]} 24. Bxc6 {[%emt 0:03:46]} bxc6 {[%emt 0:00:48]} 25. Qd3 {[%emt 0:00:54]} Rdg8 {[%emt 0:00:42]} 26. g3 {[%emt 0:00:25]} h4 27. Bf4 {[%emt 0:01:30]} hxg3 {[%emt 0:01:04]} 28. fxg3 {[%emt 0:01:10]} Ne6 {[%emt 0:01:08]} 29. Bd6 {[%emt 0:03:37]} Rg5 {[%emt 0:00:47]} 30. Qb3 {[%emt 0:03:10]} Nc5 {[%emt 0:00:48]} 31. Qb8# {[%emt 0:00:19]} 1-0

[Event "EYCC Girls U16 2018"]
[Site "Riga"]
[Date "2018.08.20"]
[Round "1"]
[White "Tomcikova, Dominika"]
[Black "Antova, Gabriela"]
[Result "0-1"]
[ECO "B23"]
[WhiteElo "1915"]
[BlackElo "2293"]
[Annotator "NA"]
[PlyCount "58"]
[EventDate "2018.08.20"]
[EventType "swiss"]
[EventCountry "LAT"]
[SourceTitle "playchess.com"]
[Source "ChessBase"]
[SourceQuality "1"]
[TimeControl "40/5400+30:1800+30"]

1. e4 {[%emt 0:00:00]} c5 {[%emt 0:00:00]} 2. Nc3 {[%emt 0:00:00]} d6 {[%emt 0:00:00]} 3. Bb5+ {[%emt 0:00:00]} Bd7 {[%emt 0:01:54]} 4. Bxd7+ {[%emt 0:00:39]} Qxd7 {[%emt 0:00:03]} 5. Nf3 {[%emt 0:00:57]} Nc6 {[%emt 0:02:25] LiveBook: 8 Games} 6. d3 {[%emt 0:02:33]} g6 {[%emt 0:01:54]} 7. O-O {[%emt 0:02:32]} Bg7 {[%emt 0:01:15]} 8. Re1 {[%emt 0:04:10]} Nf6 {[%emt 0:03:49]} 9. h3 {[%emt 0:06:25]} O-O $11 {[%emt 0:03:35]} 10. Be3 {[%emt 0:01:58]} Rac8 {[%emt 0:03:20]} 11. Qd2 {[%emt 0:04:00]} Rfe8 {[%emt 0:03:03]} 12. Rad1 {[%emt 0:05:21]} e6 {[%emt 0:04:04]} 13. Bf4 {[%emt 0:08:00]} Nd4 {[%emt 0:06:42]} 14. Nxd4 {[%emt 0:05:56]} cxd4 {[%emt 0:00:11]} 15. Ne2 {[%emt 0:00:39]} e5 {[%emt 0:03:05]} 16. Bh2 {[%emt 0:03:34]} d5 {[%emt 0:03:17]} 17. Ng3 {[%emt 0:12:24]} dxe4 {[%emt 0:10:58]} 18. Nxe4 {[%emt 0:02:00]} Nxe4 {[%emt 0:01:01]} 19. dxe4 {[%emt 0:01:50]} Qa4 {[%emt 0:00:36]} 20. c3 {[%emt 0:03:12]} Qxa2 {[%emt 0:03:49]} 21. cxd4 {[%emt 0:05:29]} exd4 {[%emt 0:01:14]} 22. e5 {[%emt 0:02:56]} Red8 {[%emt 0:05:05]} 23. Qb4 {[%emt 0:04:25]} Qd5 {[%emt 0:01:05]} 24. Bg3 {[%emt 0:08:07]} d3 {[%emt 0:07:37]} 25. Kh2 {[%emt 0:05:08]} a5 {[%emt 0:11:22]} 26. Qa3 {[%emt 0:01:38]} Bf8 {[%emt 0:00:44]} 27. Qa1 {[%emt 0:01:15]} Bb4 {[%emt 0:02:39]} 28. Re3 {[%emt 0:00:57]} Qc4 {[%emt 0:04:19]} 29. Qb1 {[%emt 0:02:16]} d2 {[%emt 0:00:50]} 0-1

[Event "EYCC Girls U16 2018"]
[Site "Riga"]
[Date "2018.08.20"]
[Round "1"]
[White "Martinez, Anna"]
[Black "Goltseva, Ekaterina"]
[Result "0-1"]
[ECO "C00"]
[WhiteElo "1881"]
[BlackElo "2185"]
[Annotator "NA"]
[PlyCount "38"]
[EventDate "2018.08.20"]
[EventType "swiss"]
[EventCountry "LAT"]
[SourceTitle "playchess.com"]
[Source "ChessBase"]
[SourceQuality "1"]
[TimeControl "40/5400+30:1800+30"]

1. e4 {[%emt 0:00:00]} e6 {[%emt 0:00:00]} 2. d4 {[%emt 0:00:00]} d5 {[%emt 0:00:00]} 3. Bd3 {[%emt 0:00:00]} c5 {[%emt 0:07:42]} 4. c3 {[%emt 0:05:41]} Nc6 {[%emt 0:06:05]} 5. Ne2 {[%emt 0:03:58]} cxd4 $11 {[%emt 0:06:28] LiveBook: 3 Games} 6. cxd4 {[%emt 0:02:10]} Nb4 {[%emt 0:05:47]} 7. Nbc3 {[%emt 0:06:35]} Nxd3+ {[%emt 0:01:43]} 8. Qxd3 {[%emt 0:00:08]} dxe4 {[%emt 0:00:45]} 9. Nxe4 {[%emt 0:01:09]} Bb4+ {[%emt 0:08:12]} 10. N2c3 {[%emt 0:01:01]} Ne7 {[%emt 0:01:35]} 11. Bg5 {[%emt 0:02:58]} f6 {[%emt 0:04:00]} 12. Nxf6+ {[%emt 0:30:32]} gxf6 {[%emt 0:01:49]} 13. Bxf6 {[%emt 0:00:04]} Rf8 {[%emt 0:08:53]} 14. Bg7 {[%emt 0:05:35]} Rf5 {[%emt 0:03:46]} 15. g4 {[%emt 0:11:16]} Rf7 {[%emt 0:07:52]} 16. Qb5+ {[%emt 0:06:20]} Nc6 {[%emt 0:01:27]} 17. Qh5 {[%emt 0:03:52]} Qd5 {[%emt 0:03:15]} 18. Qxd5 {[%emt 0:00:46]} exd5 {[%emt 0:00:05]} 19. Bh8 {[%emt 0:02:40]} Bxg4 {[%emt 0:00:59]} 0-1

[Event "EYCC Girls U16 2018"]
[Site "Riga"]
[Date "2018.08.20"]
[Round "1"]
[White "Reitz, Theresa"]
[Black "Ferkova, Dominika"]
[Result "0-1"]
[ECO "B18"]
[WhiteElo "1850"]
[BlackElo "2180"]
[Annotator "NA"]
[PlyCount "53"]
[EventDate "2018.08.20"]
[EventType "swiss"]
[EventCountry "LAT"]
[SourceTitle "playchess.com"]
[Source "ChessBase"]
[SourceQuality "1"]
[TimeControl "40/5400+30:1800+30"]

1. e4 {[%emt 0:00:00]} c6 {[%emt 0:00:00]} 2. d4 {[%emt 0:00:00]} d5 {[%emt 0:00:00]} 3. Nd2 {[%emt 0:00:00]} dxe4 {[%emt 0:00:00]} 4. Nxe4 {[%emt 0:00:00]} Bf5 {[%emt 0:00:00]} 5. Ng3 {[%emt 0:00:07]} Bg6 {[%emt 0:00:00]} 6. Bc4 {[%emt 0:00:16]} e6 {[%emt 0:00:53] LiveBook: 652 Games} 7. Nh3 {[%emt 0:00:27]} Nf6 {[%emt 0:00:33]} 8. O-O {[%emt 0:00:32]} Bd6 {[%emt 0:01:36]} 9. f4 {[%emt 0:02:37]} Qc7 {[%emt 0:08:59]} 10. Kh1 $11 {[%emt 0:02:07]} O-O {[%emt 0:00:33]} 11. f5 {[%emt 0:01:52]} exf5 {[%emt 0:00:55]} 12. Nxf5 {[%emt 0:05:11]} Nbd7 {[%emt 0:04:46]} 13. Nxd6 {[%emt 0:01:15]} Qxd6 {[%emt 0:00:03]} 14. c3 {[%emt 0:00:43]} Rfe8 {[%emt 0:14:06]} 15. Bf4 {[%emt 0:18:19]} Qe7 {[%emt 0:03:01]} 16. Bg5 {[%emt 0:18:17]} b5 {[%emt 0:16:25]} 17. Bb3 Qe2 {[%emt 0:05:56]} 18. Qxe2 {[%emt 0:14:53]} Rxe2 {[%emt 0:00:34]} 19. Nf4 {[%emt 0:06:29]} Rxb2 {[%emt 0:05:43]} 20. Nxg6 {[%emt 0:00:37]} hxg6 {[%emt 0:00:02]} 21. Rae1 {[%emt 0:12:21]} a5 {[%emt 0:10:35]} 22. Re7 {[%emt 0:10:35]} Rf8 {[%emt 0:01:03]} 23. Bc1 {[%emt 0:02:29]} Rb1 {[%emt 0:01:23]} 24. g4 {[%emt 0:01:46]} Nb6 {[%emt 0:03:49]} 25. Bc2 {[%emt 0:00:55]} Ra1 {[%emt 0:00:12]} 26. Kg1 {[%emt 0:00:38]} Nbd5 {[%emt 0:04:39]} 27. g5 {[%emt 0:00:30]} 0-1

[Event "EYCC Girls U16 2018"]
[Site "Riga"]
[Date "2018.08.20"]
[Round "1"]
[White "Verbin, Valentina"]
[Black "Shpanko, Nadiia"]
[Result "0-1"]
[ECO "B90"]
[WhiteElo "1838"]
[BlackElo "2176"]
[Annotator "NA"]
[PlyCount "58"]
[EventDate "2018.08.20"]
[EventType "swiss"]
[EventCountry "LAT"]
[SourceTitle "playchess.com"]
[Source "ChessBase"]
[SourceQuality "1"]
[TimeControl "40/5400+30:1800+30"]

1. e4 {[%emt 0:00:00]} c5 {[%emt 0:00:00]} 2. Nf3 {[%emt 0:00:00]} d6 {[%emt 0:00:00]} 3. d4 {[%emt 0:00:00]} cxd4 {[%emt 0:00:00]} 4. Nxd4 {[%emt 0:00:00]} Nf6 {[%emt 0:00:00]} 5. Nc3 {[%emt 0:00:05]} a6 {[%emt 0:00:00]} 6. Be3 {[%emt 0:00:13]} e6 {[%emt 0:00:02]} 7. f3 {[%emt 0:00:12]} b5 {[%emt 0:00:08]} 8. Qd2 {[%emt 0:00:18]} Nbd7 {[%emt 0:00:18]} 9. g4 {[%emt 0:00:19]} Nb6 {[%emt 0:00:16]} 10. a4 {[%emt 0:00:25]} Nc4 {[%emt 0:11:06]} 11. Bxc4 {[%emt 0:00:45]} bxc4 {[%emt 0:03:59]} 12. a5 {[%emt 0:00:15]} Nd7 {[%emt 0:06:18] LiveBook: 4 Games} 13. b4 {[%emt 0:09:29]} cxb3 {[%emt 0:02:39]} 14. cxb3 {[%emt 0:00:07]} Bb7 {[%emt 0:00:44]} 15. O-O {[%emt 0:02:36]} Rc8 $11 {[%emt 0:02:43]} 16. Na4 {[%emt 0:06:09]} d5 {[%emt 0:11:52]} 17. Rac1 {[%emt 0:10:37]} Rxc1 {[%emt 0:04:07]} 18. Rxc1 {[%emt 0:00:20]} dxe4 {[%emt 0:02:36]} 19. f4 {[%emt 0:08:11]} Ba3 {[%emt 0:09:57]} 20. Rc2 {[%emt 0:08:15]} O-O {[%emt 0:02:11]} 21. b4 {[%emt 0:10:10]} Qh4 {[%emt 0:20:34]} 22. Rc7 {[%emt 0:17:29]} Qxg4+ {[%emt 0:01:26]} 23. Kf2 {[%emt 0:03:43]} e5 {[%emt 0:04:18]} 24. Nc2 {[%emt 0:12:25]} exf4 {[%emt 0:05:41]} 25. Rxb7 {[%emt 0:05:23]} Qf3+ {[%emt 0:02:00]} 26. Kg1 {[%emt 0:01:03]} fxe3 {[%emt 0:00:44]} 27. Nxe3 {[%emt 0:03:36]} Ne5 {[%emt 0:00:37]} 28. Qc3 {[%emt 0:01:10]} Nd3 {[%emt 0:00:58]} 29. Qxa3 {[%emt 0:00:35]} Qxe3+ {[%emt 0:00:06]} 0-1

[Event "EYCC Girls U16 2018"]
[Site "Riga"]
[Date "2018.08.21"]
[Round "2"]
[White "Strukova, Ksenia"]
[Black "Schneider, Jana"]
[Result "1/2-1/2"]
[ECO "C54"]
[WhiteElo "1967"]
[BlackElo "2179"]
[Annotator "NA"]
[PlyCount "140"]
[EventDate "2018.08.20"]
[EventType "swiss"]
[EventCountry "LAT"]
[SourceTitle "playchess.com"]
[Source "ChessBase"]
[SourceQuality "1"]
[TimeControl "40/5400+30:1800+30"]

1. e4 {[%emt 0:00:00]} e5 {[%emt 0:00:00]} 2. Nf3 {[%emt 0:00:00]} Nc6 {[%emt 0:00:00]} 3. Bc4 {[%emt 0:00:00]} Bc5 {[%emt 0:00:00]} 4. c3 {[%emt 0:00:00]} Nf6 {[%emt 0:00:00]} 5. d3 {[%emt 0:00:01]} a6 {[%emt 0:00:10]} 6. Bb3 {[%emt 0:00:36]} Ba7 {[%emt 0:00:24]} 7. Nbd2 {[%emt 0:00:36]} h6 {[%emt 0:00:28]} 8. h3 {[%emt 0:01:20]} d6 {[%emt 0:00:23]} 9. Nf1 {[%emt 0:00:35]} d5 {[%emt 0:00:38]} 10. Qe2 {[%emt 0:02:29] LiveBook: 18 Games} Be6 {[%emt 0:00:34]} 11. Ng3 {[%emt 0:10:16]} O-O $11 {[%emt 0:01:09]} 12. O-O {[%emt 0:00:18]} Re8 {[%emt 0:06:58]} 13. Be3 {[%emt 0:12:55]} Bxe3 {[%emt 0:24:30]} 14. Qxe3 {[%emt 0:00:41]} Qd7 {[%emt 0:00:24]} 15. Nh4 {[%emt 0:10:13]} d4 {[%emt 0:18:40]} 16. Qe2 {[%emt 0:01:59]} b5 {[%emt 0:03:22]} 17. Rad1 {[%emt 0:06:19]} a5 {[%emt 0:05:54]} 18. Bxe6 {[%emt 0:14:08]} Qxe6 {[%emt 0:01:00]} 19. a3 {[%emt 0:00:52]} dxc3 {[%emt 0:16:39]} 20. bxc3 {[%emt 0:00:33]} Qb3 {[%emt 0:03:25]} 21. d4 {[%emt 0:11:27]} Rab8 {[%emt 0:07:19]} 22. d5 {[%emt 0:03:12]} Ne7 {[%emt 0:03:49]} 23. Qe3 {[%emt 0:04:56]} b4 {[%emt 0:02:05]} 24. axb4 {[%emt 0:00:20]} axb4 {[%emt 0:00:05]} 25. Rd3 {[%emt 0:01:05]} Qa4 {[%emt 0:01:07]} 26. cxb4 {[%emt 0:00:54]} Rxb4 {[%emt 0:00:06]} 27. Ra3 {[%emt 0:06:25]} Qb5 {[%emt 0:00:11]} 28. Nf3 {[%emt 0:03:10]} Nc8 {[%emt 0:00:32]} 29. Nd2 {[%emt 0:02:30]} c6 {[%emt 0:00:59]} 30. dxc6 {[%emt 0:00:48]} Qxc6 {[%emt 0:00:06]} 31. Rc3 {[%emt 0:00:51]} Qa4 {[%emt 0:02:25]} 32. Nf5 {[%emt 0:00:48]} Ne7 {[%emt 0:01:50]} 33. Nd6 {[%emt 0:02:02]} Rd8 {[%emt 0:00:04]} 34. Qc5 {[%emt 0:01:52]} Rd4 {[%emt 0:00:39]} 35. N2c4 {[%emt 0:01:19]} Qc6 {[%emt 0:00:48]} 36. Qxe5 {[%emt 0:01:07]} R8xd6 {[%emt 0:00:31]} 37. Nxd6 {[%emt 0:00:43]} Qxd6 {[%emt 0:00:05]} 38. Qxd6 {[%emt 0:00:05]} Rxd6 {[%emt 0:00:05]} 39. e5 {[%emt 0:00:04]} Re6 {[%emt 0:01:21]} 40. exf6 {[%emt 0:00:00]} Rxf6 {[%emt 0:00:00]} 41. Re1 {[%emt 0:04:45]} Nd5 {[%emt 0:02:15]} 42. Rd3 {[%emt 0:01:21]} Nf4 {[%emt 0:00:38]} 43. Rf3 {[%emt 0:02:03]} g5 {[%emt 0:01:28]} 44. Kh2 {[%emt 0:00:37]} Rd6 {[%emt 0:01:19]} 45. Re8+ {[%emt 0:02:15]} Kg7 {[%emt 0:00:19]} 46. Re7 {[%emt 0:01:11]} Rf6 {[%emt 0:03:10]} 47. Ra7 {[%emt 0:00:23]} h5 {[%emt 0:02:25]} 48. g3 {[%emt 0:00:53]} Ne6 {[%emt 0:00:10]} 49. Rxf6 {[%emt 0:00:05]} Kxf6 {[%emt 0:00:06]} 50. Kg2 {[%emt 0:02:54]} g4 {[%emt 0:12:28]} 51. Ra5 {[%emt 0:03:37]} Kg6 {[%emt 0:02:57]} 52. f4 {[%emt 0:01:59]} gxf3+ {[%emt 0:02:56]} 53. Kxf3 {[%emt 0:00:01]} Ng5+ {[%emt 0:00:45]} 54. Kg2 {[%emt 0:00:57]} Ne6 {[%emt 0:00:41]} 55. Ra6 {[%emt 0:01:07]} Kf5 {[%emt 0:02:50]} 56. Ra7 {[%emt 0:00:23]} Kg6 {[%emt 0:00:18]} 57. Ra5 {[%emt 0:04:46]} f6 {[%emt 0:00:47]} 58. Ra1 {[%emt 0:00:54]} Kf5 {[%emt 0:00:54]} 59. Kf2 {[%emt 0:02:21]} Ng5 {[%emt 0:00:50]} 60. h4 {[%emt 0:02:17]} Nf7 {[%emt 0:00:34]} 61. Ke3 {[%emt 0:02:38]} Kg4 {[%emt 0:01:09]} 62. Kf2 {[%emt 0:01:57]} Ne5 {[%emt 0:01:22]} 63. Kg2 {[%emt 0:00:26]} Kf5 {[%emt 0:01:01]} 64. Kh3 {[%emt 0:00:07]} Ng4 {[%emt 0:00:34]} 65. Ra4 {[%emt 0:00:52]} Ne5 {[%emt 0:00:23]} 66. Kg2 {[%emt 0:00:34]} Nd3 {[%emt 0:00:24]} 67. Rd4 {[%emt 0:01:21]} Ne5 {[%emt 0:00:24]} 68. Rf4+ {[%emt 0:00:56]} Ke6 {[%emt 0:00:36]} 69. Kh3 {[%emt 0:01:41]} Nd3 {[%emt 0:00:45]} 70. Ra4 {[%emt 0:01:10]} Kf5 {[%emt 0:00:31]} 1/2-1/2